fUSD/lending_fUSD_20250525
["ID","MTS","AMOUNT","RATE_DAILY","PERIOD"]
[362338295,1748205045872,-420.0,0.00019899,2]
[362338296,1748205045884,-200.752088,0.000199,2]
[362338297,1748205045896,-636.10542762,0.00019995,2]
[362338298,1748205045910,-1675.31404368,0.00019995,2]
[362338299,1748205045922,-151.0,0.00019995,2]
[362338300,1748205045934,-255.438207,0.00019995,2]
[362338301,1748205045945,-2234.4778546,0.00019995,2]
[362338302,1748205045958,-606.05829084,0.00019995,2]
[362338303,1748205045972,-1000.0,0.00019995,2]
[362338304,1748205045985,-658.24647897,0.00019995,2]
[362338305,1748205045999,-1122.62422679,0.00019995,2]
[362338306,1748205046010,-151.0,0.00019995,2]
[362338307,1748205046022,-151.0,0.00019995,2]
[362338308,1748205046033,-13356.52833815,0.00019995,2]
[362338309,1748205046046,-1781.137005,0.00019995,2]
[362338310,1748205046059,-1363.68834929,0.00019995,2]
[362338311,1748205046073,-4592.27815191,0.00019995,2]
[362338313,1748205046399,-27457.36700129,0.00019995,2]
[362338314,1748205046412,-1533.06836664,0.00019995,2]
[362338315,1748205046426,-1891.83830736,0.00019995,2]
[362338316,1748205046437,-1740.0911033,0.00019995,2]
[362338317,1748205046448,-717.62110572,0.00019995,2]
[362338318,1748205046466,-200.752088,0.00019992,2]
[362338319,1748205046477,-126277.32046764,0.00019995,2]
[362338320,1748205046487,-151.0,0.00019995,2]
[362338321,1748205046497,-200.752088,0.00019995,2]
[362338322,1748205046506,-420.0,0.00019996,2]
[362338323,1748205046517,-420.0,0.00019996,2]
[362338324,1748205046528,-204.92,0.00019996,2]
[362338325,1748205046538,-420.0,0.00019996,2]
[362338326,1748205046816,-500.0,0.00019996,2]
[362338327,1748205046833,-166.6,0.00019996,2]
[362338328,1748205046849,-420.0,0.00019996,2]
[362338329,1748205046858,-420.0,0.00019996,2]
[362338330,1748205046867,-420.0,0.00019996,2]
[362338331,1748205046877,-420.0,0.00019996,2]
[362338332,1748205046886,-519.47,0.00019996,2]
[362338333,1748205046896,-247.31,0.00019996,2]
[362338334,1748205046905,-420.0,0.00019996,2]
[362338335,1748205046915,-420.0,0.00019996,2]
[362338336,1748205046925,-420.0,0.00019996,2]
[362338337,1748205046934,-420.0,0.00019996,2]
[362338338,1748205046943,-420.0,0.00019996,2]
[362338339,1748205046953,-420.0,0.00019996,2]
[362338340,1748205046962,-420.0,0.00019996,2]
[362338341,1748205046971,-420.0,0.00019996,2]
[362338342,1748205046980,-420.0,0.00019996,2]
[362338343,1748205046989,-420.0,0.00019996,2]
[362338344,1748205046998,-420.0,0.00019996,2]
[362338345,1748205047007,-420.0,0.00019996,2]
[362338346,1748205047017,-420.0,0.00019996,2]
[362338347,1748205047026,-420.0,0.00019996,2]
[362338348,1748205047036,-420.0,0.00019996,2]
[362338349,1748205047046,-1026.63,0.00019996,2]
[362338350,1748205047057,-420.0,0.00019996,2]
[362338351,1748205047067,-1312.885117,0.00019996,2]
[362338352,1748205047077,-420.0,0.00019996,2]
[362338353,1748205047088,-420.0,0.00019996,2]
[362338354,1748205047098,-420.0,0.00019996,2]
[362338355,1748205047108,-420.0,0.00019996,2]
[362338356,1748205047118,-420.0,0.00019996,2]
[362338357,1748205047129,-484.35,0.00019996,2]
[362338358,1748205047141,-1366.06849,0.00019996,2]
[362338359,1748205047150,-8131.98,0.00019996,2]
[362338360,1748205047160,-315.50555776,0.00019996,2]
[362338361,1748205047170,-420.0,0.00019996,2]
[362338362,1748205047187,-432.72,0.00019997,2]
[362338363,1748205047196,-420.0,0.00019997,2]
[362338364,1748205047206,-420.0,0.00019997,2]
[362338365,1748205047215,-420.0,0.00019997,2]
[362338366,1748205047225,-283.04,0.00019997,2]
[362338367,1748205047235,-375.08,0.00019997,2]
[362338368,1748205047244,-420.0,0.00019997,2]
[362338369,1748205047254,-373.16,0.00019997,2]
[362338370,1748205047264,-420.0,0.00019997,2]
[362338371,1748205047274,-420.0,0.00019997,2]
[362338372,1748205047284,-420.0,0.00019997,2]
[362338373,1748205047294,-150.0,0.00019997,2]
[362338374,1748205047304,-420.0,0.00019997,2]
[362338375,1748205047314,-420.0,0.00019997,2]
[362338376,1748205047324,-420.0,0.00019997,2]
[362338377,1748205047333,-420.0,0.00019997,2]
[362338378,1748205047342,-420.0,0.00019997,2]
[362338379,1748205047352,-420.0,0.00019997,2]
[362338380,1748205047361,-420.0,0.00019997,2]
[362338381,1748205047371,-420.0,0.00019997,2]
[362338382,1748205047381,-420.0,0.00019997,2]
[362338383,1748205047390,-420.0,0.00019997,2]
[362338384,1748205047399,-420.27,0.00019997,2]
[362338385,1748205047409,-183.05,0.00019997,2]
[362338386,1748205047419,-420.0,0.00019997,2]
[362338387,1748205047432,-208.49,0.00019997,2]
[362338388,1748205047442,-420.0,0.00019997,2]
[362338389,1748205047451,-384.17,0.00019997,2]
[362338390,1748205047460,-420.0,0.00019997,2]
[362338391,1748205047470,-420.0,0.00019997,2]
[362338392,1748205047480,-486.17,0.00019997,2]
[362338393,1748205047489,-535.49,0.00019997,2]
[362338394,1748205047499,-420.0,0.00019997,2]
[362338395,1748205047508,-521.27134642,0.00019997,2]
[362338396,1748205047517,-199.75,0.00019997,2]
[362338397,1748205047526,-420.0,0.00019997,2]
[362338398,1748205047536,-420.0,0.00019997,2]
[362338399,1748205047546,-420.0,0.00019997,2]
[362338400,1748205047556,-535.61,0.00019997,2]
[362338401,1748205047567,-202.72,0.00019997,2]
[362338402,1748205047577,-466.47,0.00019997,2]
[362338403,1748205047588,-420.0,0.00019997,2]
[362338404,1748205047598,-420.0,0.00019997,2]
[362338405,1748205047609,-420.0,0.00019997,2]
[362338406,1748205047620,-420.0,0.00019997,2]
[362338407,1748205047631,-161.98245906,0.00019997,2]
[362338408,1748205047640,-420.0,0.00019997,2]
[362338409,1748205047650,-348.92,0.00019997,2]
[362338410,1748205047660,-420.0,0.00019997,2]
[362338411,1748205047671,-420.0,0.00019997,2]
[362338412,1748205047682,-151.0,0.00019997,2]
[362338413,1748205047692,-420.0,0.00019997,2]
[362338414,1748205047701,-151.0,0.00019997,2]
[362338415,1748205047711,-420.0,0.00019997,2]
[362338416,1748205047721,-420.0,0.00019997,2]
[362338417,1748205047730,-420.0,0.00019997,2]
[362338418,1748205047740,-420.0,0.00019997,2]
[362338419,1748205047751,-420.0,0.00019997,2]
[362338420,1748205047760,-420.0,0.00019997,2]
[362338421,1748205047769,-151.0,0.00019997,2]
[362338422,1748205047778,-420.0,0.00019997,2]
[362338423,1748205047788,-420.0,0.00019997,2]
[362338424,1748205047798,-151.0,0.00019997,2]
[362338425,1748205047806,-151.0,0.00019997,2]
[362338426,1748205047816,-486.0,0.00019997,2]
[362338427,1748205047825,-232.267541,0.00019997,2]
[362338428,1748205047834,-232.267541,0.00019997,2]
[362338429,1748205047843,-151.0,0.00019997,2]
[362338430,1748205047853,-420.0,0.00019997,2]
[362338431,1748205047862,-151.0,0.00019997,2]
[362338432,1748205047871,-420.0,0.00019997,2]
[362338433,1748205047881,-420.0,0.00019997,2]
[362338434,1748205047890,-272.474719,0.00019997,2]
[362338435,1748205047899,-272.474719,0.00019997,2]
[362338436,1748205047909,-151.0,0.00019997,2]
[362338437,1748205047918,-420.0,0.00019997,2]
[362338438,1748205047929,-420.0,0.00019997,2]
[362338439,1748205047938,-536.86,0.00019997,2]
[362338440,1748205047947,-157.698606,0.00019997,2]
[362338441,1748205047956,-420.0,0.00019997,2]
[362338442,1748205047966,-420.0,0.00019997,2]
[362338443,1748205047975,-342.94,0.00019997,2]
[362338444,1748205047984,-420.0,0.00019997,2]
[362338445,1748205047993,-465.83,0.00019997,2]
[362338446,1748205048002,-163.182114,0.00019997,2]
[362338447,1748205048012,-420.0,0.00019997,2]
[362338448,1748205048021,-151.0,0.00019997,2]
[362338449,1748205048031,-674.911668,0.00019997,2]
[362338450,1748205048040,-420.0,0.00019997,2]
[362338451,1748205048049,-674.911668,0.00019997,2]
[362338452,1748205048058,-420.0,0.00019997,2]
[362338453,1748205048067,-420.0,0.00019997,2]
[362338454,1748205048077,-420.0,0.00019997,2]
[362338455,1748205048086,-420.0,0.00019997,2]
[362338456,1748205048095,-420.0,0.00019997,2]
[362338457,1748205048104,-151.0,0.00019997,2]
[362338458,1748205048113,-420.0,0.00019997,2]
[362338459,1748205048122,-151.0,0.00019997,2]
[362338460,1748205048131,-151.0,0.00019997,2]
[362338461,1748205048140,-244.271658,0.00019997,2]
[362338462,1748205048149,-776.31,0.00019997,2]
[362338463,1748205048158,-244.271658,0.00019997,2]
[362338464,1748205048167,-278.67,0.00019997,2]
[362338465,1748205048177,-420.0,0.00019997,2]
[362338466,1748205048185,-151.0,0.00019997,2]
[362338467,1748205048195,-704.33,0.00019997,2]
[362338468,1748205048204,-151.0,0.00019997,2]
[362338469,1748205048213,-420.0,0.00019997,2]
[362338470,1748205048222,-420.0,0.00019997,2]
[362338471,1748205048232,-420.0,0.00019997,2]
[362338472,1748205048241,-500.0,0.00019997,2]
[362338473,1748205048250,-151.0,0.00019997,2]
[362338474,1748205048259,-420.0,0.00019997,2]
[362338475,1748205048268,-420.0,0.00019997,2]
[362338476,1748205048277,-240.384214,0.00019997,2]
[362338477,1748205048286,-151.0,0.00019997,2]
[362338478,1748205048295,-430.84,0.00019997,2]
[362338479,1748205048305,-477.74,0.00019997,2]
[362338480,1748205048314,-420.0,0.00019997,2]
[362338481,1748205048323,-420.0,0.00019997,2]
[362338482,1748205048332,-420.0,0.00019997,2]
[362338483,1748205048342,-151.0,0.00019997,2]
[362338484,1748205048351,-420.0,0.00019997,2]
[362338485,1748205048361,-420.0,0.00019997,2]
[362338486,1748205048371,-420.0,0.00019997,2]
[362338487,1748205048380,-408.32540325,0.00019997,2]
[362338488,1748205048389,-420.0,0.00019997,2]
[362338489,1748205048398,-420.0,0.00019997,2]
[362338490,1748205048407,-1615.268922,0.00019997,2]
[362338491,1748205048416,-420.0,0.00019997,2]
[362338492,1748205048426,-420.0,0.00019997,2]
[362338493,1748205048435,-1615.268922,0.00019997,2]
[362338494,1748205048445,-151.0,0.00019997,2]
[362338495,1748205048454,-420.0,0.00019997,2]
[362338496,1748205048463,-420.0,0.00019997,2]
[362338497,1748205048472,-420.0,0.00019997,2]
[362338498,1748205048482,-420.0,0.00019997,2]
[362338499,1748205048492,-621.79,0.00019997,2]
[362338500,1748205048500,-151.0,0.00019997,2]
[362338501,1748205048510,-420.0,0.00019997,2]
[362338502,1748205048519,-1005.462022,0.00019997,2]
[362338503,1748205048528,-170.7,0.00019997,2]
[362338504,1748205048537,-1005.462022,0.00019997,2]
[362338505,1748205048546,-420.0,0.00019997,2]
[362338506,1748205048555,-516.87,0.00019997,2]
[362338507,1748205048565,-420.0,0.00019997,2]
[362338508,1748205048574,-420.0,0.00019997,2]
[362338509,1748205048583,-420.0,0.00019997,2]
[362338510,1748205048593,-420.0,0.00019997,2]
[362338511,1748205048603,-256.82,0.00019997,2]
[362338512,1748205048612,-360.25385493,0.00019997,2]
[362338513,1748205048621,-420.0,0.00019997,2]
[362338514,1748205048631,-1026.63,0.00019997,2]
[362338515,1748205048640,-420.0,0.00019997,2]
[362338516,1748205048649,-420.0,0.00019997,2]
[362338517,1748205048658,-420.0,0.00019997,2]
[362338518,1748205048668,-420.0,0.00019997,2]
[362338519,1748205048682,-420.0,0.00019997,2]
[362338520,1748205048691,-420.0,0.00019997,2]
[362338521,1748205048700,-460.67,0.00019997,2]
[362338522,1748205048711,-420.0,0.00019997,2]
[362338523,1748205048720,-250.03,0.00019997,2]
[362338524,1748205048730,-420.0,0.00019997,2]
[362338525,1748205048739,-420.0,0.00019997,2]
[362338526,1748205048748,-420.0,0.00019997,2]
[362338527,1748205048758,-420.0,0.00019997,2]
[362338528,1748205048768,-483.19338605,0.00019997,2]
[362338529,1748205048777,-420.0,0.00019998,2]
[362338530,1748205048787,-424.7694093,0.00019998,2]
[362338531,1748205048796,-420.0,0.00019998,2]
[362338532,1748205048806,-420.0,0.00019998,2]
[362338533,1748205048815,-422.1845007,0.00019998,2]
[362338534,1748205048824,-422.72194374,0.00019998,2]
[362338535,1748205048833,-426.55532711,0.00019998,2]
[362338536,1748205048842,-537.48,0.00019998,2]
[362338537,1748205048852,-420.0,0.00019998,2]
[362338538,1748205048861,-420.0,0.00019998,2]
[362338539,1748205048871,-420.0,0.00019998,2]
[362338540,1748205048880,-510.18,0.00019998,2]
[362338541,1748205048889,-499.87,0.00019998,2]
[362338542,1748205048899,-500.61795939,0.00019998,2]
[362338543,1748205048908,-420.0,0.00019998,2]
[362338544,1748205048918,-420.0,0.00019998,2]
[362338545,1748205048927,-420.0,0.00019998,2]
[362338546,1748205048936,-420.0,0.00019998,2]
[362338547,1748205048945,-420.0,0.00019998,2]
[362338548,1748205048955,-420.0,0.00019998,2]
[362338549,1748205048965,-420.0,0.00019998,2]
[362338550,1748205048973,-420.0,0.00019998,2]
[362338551,1748205048982,-515.41,0.00019998,2]
[362338552,1748205048991,-423.09981947,0.00019998,2]
[362338553,1748205049001,-425.0783659,0.00019998,2]
[362338554,1748205049010,-420.0,0.00019998,2]
[362338555,1748205049019,-420.0,0.00019998,2]
[362338556,1748205049028,-420.0,0.00019998,2]
[362338557,1748205049037,-424.0600157,0.00019998,2]
[362338558,1748205049046,-420.0,0.00019998,2]
[362338559,1748205049055,-420.0,0.00019998,2]
[362338560,1748205049065,-420.0,0.00019998,2]
[362338561,1748205049074,-420.0,0.00019998,2]
[362338562,1748205049084,-420.0,0.00019998,2]
[362338563,1748205049093,-422.82045189,0.00019998,2]
[362338564,1748205049102,-420.0,0.00019998,2]
[362338565,1748205049112,-420.0,0.00019998,2]
[362338566,1748205049122,-420.0,0.00019998,2]
[362338567,1748205049131,-425.91727282,0.00019998,2]
[362338568,1748205049141,-485.05,0.00019998,2]
[362338569,1748205049150,-423.90477927,0.00019998,2]
[362338570,1748205049160,-420.0,0.00019998,2]
[362338571,1748205049169,-449.35,0.00019998,2]
[362338572,1748205049179,-549.71,0.00019998,2]
[362338573,1748205049188,-422.01643034,0.00019998,2]
[362338574,1748205049197,-420.0,0.00019998,2]
[362338575,1748205049206,-420.0,0.00019998,2]
[362338576,1748205049215,-423.67501387,0.00019998,2]
[362338577,1748205049225,-425.84511157,0.00019998,2]
[362338578,1748205049234,-422.07620169,0.00019998,2]
[362338579,1748205049243,-548.85198546,0.00019998,2]
[362338580,1748205049252,-420.0,0.00019998,2]
[362338581,1748205049262,-420.0,0.00019998,2]
[362338582,1748205049272,-420.0,0.00019998,2]
[362338583,1748205049281,-420.0,0.00019998,2]
[362338584,1748205049291,-420.0,0.00019998,2]
[362338585,1748205049300,-426.37400728,0.00019998,2]
[362338586,1748205049310,-426.96620125,0.00019998,2]
[362338587,1748205049319,-420.0,0.00019998,2]
[362338588,1748205049329,-420.0,0.00019998,2]
[362338589,1748205049338,-552.33,0.00019998,2]
[362338590,1748205049347,-420.0,0.00019998,2]
[362338591,1748205049356,-420.0,0.00019998,2]
[362338592,1748205049365,-423.29349983,0.00019998,2]
[362338593,1748205049375,-428.81726124,0.00019998,2]
[362338594,1748205049384,-420.0,0.00019998,2]
[362338595,1748205049394,-525.89,0.00019998,2]
[362338596,1748205049403,-250.0,0.00019998,2]
[362338597,1748205049413,-439.03574908,0.00019998,2]
[362338598,1748205049422,-420.0,0.00019998,2]
[362338599,1748205049431,-420.0,0.00019998,2]
[362338600,1748205049440,-420.0,0.00019998,2]
[362338601,1748205049450,-420.0,0.00019998,2]
[362338602,1748205049460,-420.0,0.00019998,2]
[362338603,1748205049470,-420.0,0.00019998,2]
[362338604,1748205049479,-420.0,0.00019998,2]
[362338605,1748205049489,-424.192007,0.00019998,2]
[362338606,1748205049498,-420.0,0.00019998,2]
[362338607,1748205049508,-420.0,0.00019998,2]
[362338608,1748205049517,-580.82993745,0.00019998,2]
[362338609,1748205049528,-424.36446007,0.00019998,2]
[362338610,1748205049537,-420.0,0.00019998,2]
[362338611,1748205049547,-420.0,0.00019998,2]
[362338612,1748205049557,-420.0,0.00019998,2]
[362338613,1748205049569,-420.0,0.00019998,2]
[362338614,1748205049579,-420.0,0.00019998,2]
[362338615,1748205049590,-507.86,0.00019998,2]
[362338616,1748205049600,-420.0,0.00019998,2]
[362338617,1748205049611,-420.0,0.00019998,2]
[362338618,1748205049622,-420.0,0.00019998,2]
[362338619,1748205049632,-420.0,0.00019998,2]
[362338620,1748205049644,-420.0,0.00019998,2]
[362338621,1748205049655,-420.0,0.00019998,2]
[362338622,1748205049667,-420.0,0.00019998,2]
[362338623,1748205049682,-420.0,0.00019998,2]
[362338624,1748205049692,-424.37295278,0.00019998,2]
[362338625,1748205049701,-436.87,0.00019998,2]
[362338626,1748205049711,-420.0,0.00019998,2]
[362338627,1748205049721,-420.0,0.00019998,2]
[362338628,1748205049730,-424.20222996,0.00019998,2]
[362338629,1748205049739,-420.0,0.00019998,2]
[362338630,1748205049749,-420.0,0.00019998,2]
[362338631,1748205049759,-420.0,0.00019998,2]
[362338632,1748205049768,-420.0,0.00019998,2]
[362338633,1748205049778,-500.76,0.00019998,2]
[362338634,1748205049787,-420.0,0.00019998,2]
[362338635,1748205049796,-420.0,0.00019998,2]
[362338636,1748205049806,-420.0,0.00019998,2]
[362338637,1748205049814,-420.0,0.00019998,2]
[362338638,1748205049824,-422.90854656,0.00019998,2]
[362338639,1748205049833,-423.39983267,0.00019998,2]
[362338640,1748205049843,-527.81773368,0.00019998,2]
[362338641,1748205049852,-420.33,0.00019998,2]
[362338642,1748205049863,-400.0,0.00019998,2]
[362338643,1748205049873,-420.0,0.00019998,2]
[362338644,1748205049883,-509.1,0.00019998,2]
[362338645,1748205049892,-420.0,0.00019998,2]
[362338646,1748205049902,-400.0,0.00019998,2]
[362338647,1748205049911,-420.0,0.00019998,2]
[362338648,1748205049922,-420.0,0.00019998,2]
[362338649,1748205049933,-420.0,0.00019998,2]
[362338650,1748205049942,-479.62,0.00019998,2]
[362338651,1748205049952,-384.26102344,0.00019998,2]
[362338652,1748205049963,-426.05642567,0.00019998,2]
[362338653,1748205049974,-420.0,0.00019998,2]
[362338654,1748205049985,-420.0,0.00019998,2]
[362338655,1748205049995,-420.0,0.00019998,2]
[362338656,1748205050005,-420.0,0.00019998,2]
[362338657,1748205050015,-420.0,0.00019998,2]
[362338658,1748205050026,-422.63075863,0.00019998,2]
[362338659,1748205050183,-420.0,0.00019998,2]
[362338660,1748205050193,-423.14175117,0.00019998,2]
[362338661,1748205050203,-424.26051374,0.00019998,2]
[362338662,1748205050214,-449.75,0.00019998,2]
[362338663,1748205050225,-421.07,0.00019998,2]
[362338664,1748205050236,-420.0,0.00019998,2]
[362338665,1748205050246,-422.49229986,0.00019998,2]
[362338666,1748205050255,-420.0,0.00019998,2]
[362338667,1748205050266,-391.77419058,0.00019998,2]
[362338668,1748205050275,-474.65,0.00019998,2]
[362338669,1748205050284,-420.0,0.00019998,2]
[362338670,1748205050296,-481.96,0.00019998,2]
[362338671,1748205050305,-420.0,0.00019998,2]
[362338672,1748205050315,-420.0,0.00019998,2]
[362338673,1748205050326,-425.95963904,0.00019998,2]
[362338674,1748205050337,-446.64,0.00019998,2]
[362338675,1748205050347,-420.0,0.00019998,2]
[362338676,1748205050357,-421.81981772,0.00019998,2]
[362338677,1748205050368,-420.0,0.00019998,2]
[362338678,1748205050379,-424.15153708,0.00019998,2]
[362338679,1748205050389,-420.0,0.00019998,2]
[362338680,1748205050398,-420.0,0.00019998,2]
[362338681,1748205050408,-429.57471706,0.00019998,2]
[362338682,1748205050418,-555.73,0.00019998,2]
[362338683,1748205050427,-420.0,0.00019998,2]
[362338684,1748205050437,-420.0,0.00019998,2]
[362338685,1748205050447,-420.0,0.00019998,2]
[362338686,1748205050456,-436.81897346,0.00019998,2]
[362338687,1748205050465,-420.0,0.00019998,2]
[362338688,1748205050475,-420.0,0.00019998,2]
[362338689,1748205050485,-430.48535095,0.00019998,2]
[362338690,1748205050494,-427.19471945,0.00019998,2]
[362338691,1748205050504,-420.0,0.00019998,2]
[362338692,1748205050513,-420.0,0.00019998,2]
[362338693,1748205050523,-426.73275297,0.00019998,2]
[362338694,1748205050532,-420.0,0.00019998,2]
[362338695,1748205050541,-420.0,0.00019998,2]
[362338696,1748205050551,-502.28707025,0.00019998,2]
[362338697,1748205050560,-420.0,0.00019998,2]
[362338698,1748205050570,-538.75,0.00019998,2]
[362338699,1748205050579,-420.0,0.00019998,2]
[362338700,1748205050588,-500.0,0.00019998,2]
[362338701,1748205050598,-421.40957339,0.00019998,2]
[362338702,1748205050607,-423.0539799,0.00019998,2]
[362338703,1748205050616,-420.0,0.00019998,2]
[362338704,1748205050626,-426.4141803,0.00019998,2]
[362338705,1748205050635,-401.35331539,0.00019998,2]
[362338706,1748205050644,-431.91670803,0.00019998,2]
[362338707,1748205050654,-420.0,0.00019998,2]
[362338708,1748205050663,-420.0,0.00019998,2]
[362338709,1748205050676,-429.67262733,0.00019998,2]
[362338710,1748205050685,-420.0,0.00019998,2]
[362338711,1748205050695,-426.88086161,0.00019998,2]
[362338712,1748205050704,-429.61654635,0.00019998,2]
[362338713,1748205050715,-485.19753897,0.00019998,2]
[362338714,1748205050724,-425.27603919,0.00019998,2]
[362338715,1748205050734,-423.46826511,0.00019998,2]
[362338716,1748205050744,-482.28,0.00019998,2]
[362338717,1748205050754,-420.0,0.00019998,2]
[362338718,1748205050764,-420.0,0.00019998,2]
[362338719,1748205050773,-424.80088744,0.00019998,2]
[362338720,1748205050783,-431.00670367,0.00019998,2]
[362338721,1748205050793,-420.0,0.00019998,2]
[362338722,1748205050803,-420.74225013,0.00019998,2]
[362338723,1748205050813,-450.50667437,0.00019998,2]
[362338724,1748205050822,-267.75228245,0.00019998,2]
[362338725,1748205050832,-420.0,0.00019998,2]
[362338726,1748205050841,-420.0,0.00019998,2]
[362338727,1748205050851,-423.86773472,0.00019998,2]
[362338728,1748205050861,-420.0,0.00019998,2]
[362338729,1748205050871,-420.0,0.00019998,2]
[362338730,1748205050880,-192.12633247,0.00019998,2]
[362338731,1748205050890,-420.0,0.00019998,2]
[362338732,1748205050899,-420.0,0.00019998,2]
[362338733,1748205050910,-427.15976919,0.00019998,2]
[362338734,1748205050920,-423.26077129,0.00019998,2]
[362338735,1748205050930,-553.38,0.00019998,2]
[362338736,1748205050940,-431.81568721,0.00019998,2]
[362338737,1748205050949,-500.0,0.00019998,2]
[362338738,1748205050959,-425.13088791,0.00019998,2]
[362338739,1748205050969,-420.0,0.00019998,2]
[362338740,1748205050978,-423.31679703,0.00019998,2]
[362338741,1748205050988,-420.0,0.00019998,2]
[362338742,1748205050998,-426.18536765,0.00019998,2]
[362338743,1748205051007,-420.0,0.00019998,2]
[362338744,1748205051017,-151.0,0.00019998,2]
[362338745,1748205051027,-420.0,0.00019998,2]
[362338746,1748205051036,-427.11621315,0.00019998,2]
[362338747,1748205051046,-423.44072314,0.00019998,2]
[362338748,1748205051056,-426.44430377,0.00019998,2]
[362338749,1748205051066,-423.19111175,0.00019998,2]
[362338750,1748205051075,-427.5672242,0.00019998,2]
[362338751,1748205051085,-428.95040171,0.00019998,2]
[362338752,1748205051094,-420.0,0.00019998,2]
[362338753,1748205051105,-420.0,0.00019998,2]
[362338754,1748205051114,-435.52166748,0.00019998,2]
[362338755,1748205051123,-434.93858329,0.00019998,2]
[362338756,1748205051132,-422.03424229,0.00019998,2]
[362338757,1748205051142,-293.278,0.00019998,2]
[362338758,1748205051151,-439.21509418,0.00019998,2]
[362338759,1748205051160,-420.0,0.00019998,2]
[362338760,1748205051170,-429.90559517,0.00019998,2]
[362338761,1748205051179,-441.89007446,0.00019998,2]
[362338762,1748205051189,-423.54055432,0.00019998,2]
[362338763,1748205051198,-424.06143775,0.00019998,2]
[362338764,1748205051208,-425.99527263,0.00019998,2]
[362338765,1748205051217,-429.08679006,0.00019998,2]
[362338766,1748205051227,-151.0,0.00019998,2]
[362338767,1748205051237,-431.51317162,0.00019998,2]
[362338768,1748205051247,-420.0,0.00019998,2]
[362338769,1748205051257,-420.0,0.00019998,2]
[362338770,1748205051266,-434.40962108,0.00019998,2]
[362338771,1748205051276,-420.0,0.00019998,2]
[362338772,1748205051285,-647.23786193,0.00019998,2]
[362338773,1748205051295,-424.62756443,0.00019998,2]
[362338774,1748205051305,-420.0,0.00019998,2]
[362338775,1748205051315,-423.47735978,0.00019998,2]
[362338776,1748205051325,-454.5426382,0.00019998,2]
[362338777,1748205051334,-405.61696687,0.00019998,2]
[362338778,1748205051343,-420.0,0.00019998,2]
[362338779,1748205051353,-431.53904611,0.00019998,2]
[362338780,1748205051363,-420.0,0.00019998,2]
[362338781,1748205051373,-420.0,0.00019998,2]
[362338782,1748205051382,-151.0,0.00019998,2]
[362338783,1748205051391,-151.0,0.00019998,2]
[362338784,1748205051401,-420.90386517,0.00019998,2]
[362338785,1748205051410,-436.83,0.00019998,2]
[362338786,1748205051419,-569.37,0.00019998,2]
[362338787,1748205051429,-420.0,0.00019998,2]
[362338788,1748205051439,-426.22,0.00019998,2]
[362338789,1748205051449,-420.0,0.00019998,2]
[362338790,1748205051458,-420.0,0.00019998,2]
[362338791,1748205051468,-372.37,0.00019998,2]
[362338792,1748205051477,-420.0,0.00019998,2]
[362338793,1748205051487,-420.0,0.00019998,2]
[362338794,1748205051496,-420.0,0.00019998,2]
[362338795,1748205051506,-420.0,0.00019998,2]